bitfinex/quotes_BTCUSD_20220307
["timestamp","ask_amount","ask_price","bid_price","bid_amount"]
[1646673550138,0.03708406,38714.0,38709.0,0.1]
[1646673550341,0.03708406,38714.0,38705.0,0.1]
[1646673550537,0.03708406,38714.0,38708.0,0.006]
[1646673551140,0.03708406,38714.0,38710.0,0.05378036]
[1646673551743,0.03736199,38714.0,38710.0,0.05378036]
[1646673552579,0.03708406,38714.0,38710.0,0.05378036]
[1646673552781,0.03736199,38714.0,38710.0,0.05378036]
[1646673553779,0.03708406,38714.0,38711.0,0.3]
[1646673554180,0.03736178,38714.0,38710.0,0.31723087]
[1646673554581,0.03936178,38714.0,38711.0,0.3]
[1646673554782,0.22577,38725.0,38712.0,1.5]
[1646673555081,0.05,38725.0,38713.0,0.3]
[1646673555281,0.19963142,38731.0,38713.0,0.3]
[1646673555283,0.0129,38729.0,38713.0,0.45]
[1646673555482,0.0129,38730.0,38723.0,0.20768624]
[1646673555686,0.03863142,38731.0,38726.0,0.06535358]
[1646673556138,0.24182124,38733.0,38726.0,0.06535358]
[1646673556940,0.03867,38738.0,38726.0,0.06535358]
[1646673556941,0.0129,38738.0,38726.0,0.06535358]
[1646673557337,0.064576,38734.0,38726.0,0.06535358]
[1646673557539,0.064576,38734.0,38719.0,0.0129]
[1646673557540,0.20474196,38732.0,38719.0,0.3129]
[1646673557738,0.30474196,38732.0,38719.0,0.3]
[1646673557938,0.30474196,38732.0,38714.0,0.32577]
[1646673558141,0.2804414,38732.0,38714.0,0.32577]
[1646673558340,0.06458388,38731.0,38715.0,0.1]
[1646673558639,0.21749211,38727.0,38720.0,0.16429521]
[1646673558839,0.26749211,38727.0,38722.0,0.05908051]
[1646673559239,0.00029697,38725.0,38722.0,0.05908051]
[1646673559679,0.00029697,38725.0,38716.0,0.3]
[1646673559885,0.21215464,38726.0,38715.0,0.1]
[1646673560081,0.064593,38724.0,38714.0,0.46325209]
[1646673560281,0.064593,38724.0,38715.0,0.1]
[1646673560480,0.064593,38724.0,38715.0,0.15]
[1646673560683,0.2382508,38721.0,38717.0,0.06745288]
[1646673561485,0.06489399,38721.0,38717.0,0.06745288]
[1646673562089,0.06489399,38721.0,38710.0,0.3129]
[1646673562287,0.064597,38721.0,38707.0,0.3129]
[1646673562485,0.064597,38721.0,38707.0,0.3]
[1646673562685,0.064597,38721.0,38713.0,0.010346]
[1646673562884,0.06489399,38721.0,38713.0,0.010346]
[1646673563084,0.22708069,38721.0,38715.0,0.06410445]
[1646673563286,0.00029699,38721.0,38716.0,0.20976167]
[1646673563532,0.05,38725.0,38716.0,0.20976167]
[1646673563737,0.05,38726.0,38716.0,0.20976167]
[1646673563932,0.00029677,38720.0,38716.0,0.20976167]
[1646673564336,0.00029677,38720.0,38711.0,0.129182]
[1646673564737,0.941863,38726.0,38711.0,0.129182]
[1646673564937,0.2333853,38717.0,38708.0,0.064604]
[1646673565136,0.23368208,38717.0,38709.0,0.07492003]
[1646673565937,0.0646113,38716.0,38707.0,0.0129]
[1646673566138,0.129232,38713.0,38701.0,0.129223]
[1646673566341,0.064616,38713.0,38703.0,0.064614]
[1646673566537,0.114616,38713.0,38703.0,0.064614]
[1646673566736,0.05,38713.0,38703.0,0.064614]
[1646673566938,0.05,38713.0,38708.0,0.0708448]
[1646673567186,0.00029679,38716.0,38707.0,0.16458719]
[1646673567187,0.7869,38715.0,38707.0,0.16458719]
[1646673567389,0.00029679,38716.0,38707.0,0.22919319]
[1646673567586,0.3333853,38717.0,38707.0,0.22919319]
[1646673567786,0.00027652,38716.0,38707.0,0.22919319]
[1646673567989,0.00027652,38716.0,38704.0,0.33832761]
[1646673568185,0.00027652,38716.0,38704.0,0.12921]
[1646673568387,0.064614,38714.0,38704.0,0.12921]
[1646673568589,0.064614,38714.0,38701.0,0.0129]
[1646673568791,0.064614,38714.0,38701.0,0.00110652]
[1646673568792,0.02577,38710.0,38701.0,0.00110652]
[1646673568990,0.15,38711.0,38701.0,0.00110652]
[1646673568991,0.22337653,38708.0,38701.0,0.00110652]
[1646673569188,0.24016782,38704.0,38701.0,0.00110652]
[1646673569389,0.064635,38703.0,38701.0,0.00110652]
[1646673569786,0.114635,38703.0,38701.0,0.00110652]
[1646673570186,0.114635,38703.0,38689.0,0.3129]
[1646673570187,0.06463581,38700.0,38697.0,0.00110659]
[1646673570786,0.06463581,38700.0,38695.0,0.21178002]
[1646673571036,0.26563496,38698.0,38695.0,0.21178002]
[1646673571439,0.05,38697.0,38695.0,0.21178002]
[1646673572335,0.05,38700.0,38695.0,0.21178002]
[1646673572538,0.05,38700.0,38699.0,0.07063002]
[1646673572735,0.05,38700.0,38695.0,0.21178002]
[1646673572935,0.12926,38705.0,38695.0,0.21178002]
[1646673573135,0.2245206,38702.0,38695.0,0.21178002]
[1646673573335,0.2745206,38702.0,38695.0,0.21178002]
[1646673573837,0.064632,38700.0,38695.0,0.26712158]
[1646673574336,0.064632,38700.0,38695.0,0.21097202]
[1646673574537,0.068632,38700.0,38695.0,0.21097202]
[1646673575193,0.06464,38698.0,38694.0,0.010352]
[1646673575388,0.05,38699.0,38694.0,0.010352]
[1646673575887,0.17926776,38700.0,38694.0,0.010352]
[1646673576289,0.17926776,38700.0,38698.0,0.06526969]
[1646673576488,0.114632,38700.0,38698.0,0.06526969]
[1646673576687,0.05,38699.0,38698.0,0.06526969]
[1646673576888,0.05,38699.0,38697.0,0.1979883]
[1646673577290,0.067632,38700.0,38697.0,0.1979883]
[1646673577793,0.0976,38701.0,38697.0,0.1979883]
[1646673577989,0.0976,38701.0,38687.0,0.001]
[1646673578438,0.05,38701.0,38700.0,0.21338461]
[1646673578639,0.03930975,38708.0,38700.0,0.21338461]
[1646673578837,0.03930975,38708.0,38705.0,0.07346791]
[1646673579038,0.03930975,38708.0,38700.0,0.21338461]
[1646673579637,0.03930975,38708.0,38700.0,0.39712795]
[1646673580237,0.03930975,38708.0,38701.0,0.06557787]
[1646673580444,0.10392575,38708.0,38700.0,0.21338461]
[1646673580639,0.15592575,38708.0,38700.0,0.21338461]
[1646673581239,0.15592575,38708.0,38700.0,0.38099411]
[1646673581438,0.15592575,38708.0,38700.0,0.21338461]
[1646673581842,0.15392575,38708.0,38706.0,0.17785502]
[1646673582044,0.03930975,38708.0,38706.0,0.17785502]
[1646673582683,0.28905054,38714.0,38706.0,0.17785502]
[1646673582884,0.27615054,38714.0,38706.0,0.17785502]
[1646673583086,0.34075754,38714.0,38706.0,0.17785502]
[1646673583584,0.39075754,38714.0,38706.0,0.17785502]
[1646673583986,0.114607,38714.0,38706.0,0.17785502]
[1646673584184,0.064601,38718.0,38706.0,0.47785502]
[1646673584385,0.23932895,38721.0,38706.0,0.47785502]
[1646673584386,0.00027783,38716.0,38706.0,0.47785502]
[1646673584585,0.00027783,38716.0,38714.0,0.2249241]
[1646673584989,0.00027783,38716.0,38715.0,0.3]
[1646673585186,0.00027783,38716.0,38715.0,0.5047566]
[1646673585383,0.00027783,38716.0,38715.0,0.57614129]
[1646673585584,0.00027783,38716.0,38715.0,0.5047566]
[1646673585785,0.00027783,38716.0,38715.0,0.2047566]
[1646673586031,0.00027784,38717.0,38715.0,0.2047566]
[1646673586232,0.00027784,38717.0,38715.0,0.5047566]
[1646673586432,0.0129,38729.0,38716.0,0.3]
[1646673586631,0.41011099,38730.0,38719.0,0.064575]
[1646673586632,0.409,38730.0,38719.0,0.064575]
[1646673587033,0.6731771,38730.0,38722.0,0.16596446]
[1646673587233,0.6731771,38730.0,38721.0,0.05832744]
[1646673587234,0.2641771,38730.0,38723.0,0.17833983]
[1646673587533,0.3287571,38730.0,38723.0,0.17833983]
[1646673587733,0.3276461,38730.0,38723.0,0.17833983]
[1646673588232,0.00029651,38728.0,38723.0,0.17833983]
[1646673588438,0.00029651,38728.0,38721.0,0.15804435]
[1646673588834,0.00029651,38728.0,38714.0,0.1]
[1646673589036,0.064584,38728.0,38715.0,0.05]
[1646673589237,0.27112642,38724.0,38715.0,0.05]
[1646673589437,0.43821389,38724.0,38715.0,0.16673853]
[1646673589896,0.43821389,38724.0,38715.0,0.21673853]
[1646673590398,0.00011518,38721.0,38715.0,0.21673853]
[1646673591097,0.00011518,38721.0,38715.0,0.24250853]
[1646673591307,0.00011518,38721.0,38716.0,0.02577]
[1646673591495,0.007,38724.0,38716.0,0.07337]
[1646673591695,0.007,38724.0,38719.0,0.21836581]
[1646673591894,0.00118749,38730.0,38726.0,0.17979371]
[1646673592495,0.15656294,38731.0,38723.0,0.16326731]
[1646673592694,0.068581,38730.0,38723.0,0.16326731]
[1646673592895,0.0688779,38730.0,38723.0,0.16326731]
[1646673593437,0.0042969,38730.0,38723.0,0.16326731]
[1646673593639,0.0042969,38730.0,38728.0,0.18217366]
[1646673593837,0.454918,38738.0,38728.0,0.18217366]
[1646673593838,0.167818,38738.0,38728.0,0.18217366]
[1646673594040,0.05,38737.0,38728.0,0.18217366]
[1646673594238,0.06576245,38734.0,38728.0,0.18217366]
[1646673594639,0.00118745,38734.0,38729.0,0.18994442]
[1646673594940,0.29574905,38737.0,38728.0,0.18217366]
[1646673595140,0.02577,38735.0,38718.0,0.05]
[1646673595344,0.02577,38735.0,38716.0,0.6326]
[1646673595345,0.064583,38731.0,38716.0,0.6326]
[1646673595543,0.3,38730.0,38724.0,0.010344]
[1646673595841,0.35,38730.0,38724.0,0.010344]
[1646673596146,0.35,38730.0,38723.0,0.2096104]
[1646673596147,0.28163152,38728.0,38723.0,0.2096104]
[1646673596342,0.33163152,38728.0,38723.0,0.2096104]
[1646673596540,0.064588,38727.0,38723.0,0.2096104]
[1646673596742,0.00028688,38729.0,38723.0,0.2096104]
[1646673597385,0.479163,38733.0,38723.0,0.2096104]
[1646673597585,0.179163,38733.0,38723.0,0.2096104]
[1646673597785,0.00028689,38728.0,38723.0,0.2096104]
[1646673597986,0.00028689,38728.0,38726.0,0.19699208]
[1646673598189,0.00028689,38728.0,38727.0,0.2396529]
[1646673598389,0.00028689,38728.0,38727.0,0.400336]
[1646673598588,0.1552,38742.0,38727.0,0.500336]
[1646673598589,0.0129,38742.0,38727.0,0.500336]
[1646673598790,0.4555,38744.0,38727.0,0.1]
[1646673599186,0.00114735,38735.0,38732.0,0.30652007]
[1646673599387,0.00114735,38735.0,38732.0,0.24196607]
[1646673600089,0.00029666,38735.0,38732.0,0.24196607]
[1646673600686,0.00029666,38735.0,38732.0,0.24187324]
[1646673601137,0.05,38745.0,38732.0,0.24187324]
[1646673601351,0.00029666,38735.0,38732.0,0.24187324]
[1646673601642,0.00029666,38735.0,38733.0,0.700336]
[1646673601839,0.00029666,38735.0,38734.0,0.847936]
[1646673602039,0.00029666,38735.0,38734.0,0.92701071]
[1646673602242,0.0129,38756.0,38736.0,0.02577]
[1646673602541,0.26632658,38759.0,38744.0,0.02577]
[1646673602738,0.26632658,38759.0,38746.0,0.02577]
[1646673602938,0.26632658,38759.0,38744.0,0.45]
[1646673603140,0.29209658,38759.0,38744.0,0.145]
[1646673603340,0.29209658,38759.0,38744.0,0.045]
[1646673603538,0.29209658,38759.0,38744.0,0.010338]
[1646673603737,0.22825276,38753.0,38744.0,0.010338]
[1646673603940,0.1998,38758.0,38743.0,0.1]
[1646673604141,0.1998,38758.0,38746.0,0.15986344]
[1646673604142,0.23402939,38755.0,38746.0,0.15986344]
[1646673604338,0.28402939,38755.0,38746.0,0.15986344]
[1646673605185,0.28402939,38755.0,38745.0,0.27348244]
[1646673605589,0.28476294,38753.0,38745.0,0.27348244]
[1646673605787,0.064544,38752.0,38746.0,0.3]
[1646673606089,0.059544,38752.0,38746.0,0.3]
[1646673606290,0.33476294,38753.0,38746.0,0.3]
[1646673606490,0.00029072,38751.0,38745.0,0.27348244]
[1646673606687,0.00029072,38751.0,38746.0,0.3]
[1646673606887,0.06482872,38751.0,38746.0,0.3]
[1646673607288,0.06482872,38751.0,38745.0,0.39039708]
[1646673607488,0.064538,38751.0,38745.0,0.39039708]
[1646673607787,0.064538,38751.0,38746.0,0.3]
[1646673607788,0.00028594,38750.0,38746.0,0.3]
[1646673607990,0.00028594,38750.0,38743.0,0.12884882]
[1646673608198,0.00028594,38750.0,38745.0,0.02577]
[1646673608434,0.00028594,38750.0,38747.0,0.2108952]
[1646673608634,0.00028594,38750.0,38745.0,0.1]
[1646673608830,0.00028594,38750.0,38745.0,0.29387234]
[1646673609034,0.21623657,38752.0,38745.0,0.1]
[1646673609231,0.00011374,38749.0,38745.0,0.1]
[1646673609432,0.00011374,38749.0,38737.0,0.1]
[1646673609632,0.00011374,38749.0,38734.0,0.06839742]
[1646673609833,0.28210812,38747.0,38734.0,0.06839742]
[1646673610031,0.28210812,38747.0,38739.0,0.16198681]
[1646673610032,0.33210812,38747.0,38739.0,0.16198681]
[1646673610232,0.32710812,38747.0,38739.0,0.16198681]
[1646673610433,0.32710812,38747.0,38745.0,0.1670049]
[1646673610735,0.07648705,38744.0,38741.0,0.2060567]
[1646673611438,0.14132723,38744.0,38741.0,0.2060567]
[1646673611836,0.07678023,38744.0,38741.0,0.2060567]
[1646673612288,0.07678023,38744.0,38742.0,0.0562354]
[1646673612488,0.07648705,38744.0,38742.0,0.0562354]
[1646673612691,0.07678023,38744.0,38742.0,0.0562354]
[1646673613290,0.12678023,38744.0,38739.0,0.21039316]
[1646673613488,0.12678023,38744.0,38738.0,0.00029322]
[1646673613689,0.12648705,38744.0,38737.0,0.0129]
[1646673613890,0.1998,38749.0,38742.0,0.15]
[1646673614093,0.02570908,38767.0,38743.0,0.71450006]
[1646673614094,0.3,38765.0,38743.0,0.71450006]
[1646673614298,0.00029318,38745.0,38744.0,0.12577]
[1646673614493,0.00029318,38745.0,38744.0,0.47337]
[1646673614791,0.00029318,38745.0,38744.0,0.82120107]
[1646673614991,0.00029318,38745.0,38744.0,0.91694935]
[1646673615190,0.06453,38755.0,38744.0,1.31728535]
[1646673615391,0.06453,38755.0,38750.0,0.17277714]
[1646673615791,0.05,38757.0,38750.0,0.17277714]
[1646673616037,0.06453,38756.0,38750.0,0.17277714]
[1646673616237,0.06453,38756.0,38752.0,0.18553448]
[1646673617035,0.064525,38758.0,38748.0,0.1]
[1646673617238,0.064525,38758.0,38746.0,0.0129]
[1646673617239,0.35,38757.0,38746.0,0.0129]
[1646673617438,0.05,38757.0,38745.0,0.003]
[1646673617838,0.24450597,38752.0,38745.0,0.003]
[1646673618037,0.21552151,38746.0,38745.0,0.003]
[1646673618439,0.05,38746.0,38745.0,0.003]
[1646673618636,0.05,38746.0,38739.0,0.46396827]
[1646673618835,0.129112,38749.0,38740.0,0.001]
[1646673618836,0.05,38749.0,38740.0,0.001]
[1646673619039,0.1998,38752.0,38740.0,0.001]
[1646673619237,0.05,38752.0,38740.0,0.001]
[1646673619444,0.00027596,38747.0,38743.0,0.02577]
[1646673619691,0.00027596,38747.0,38746.0,0.400336]
[1646673619893,0.00027596,38747.0,38746.0,0.726106]
[1646673620092,0.22352002,38762.0,38749.0,0.25048636]
[1646673620299,0.05,38758.0,38750.0,0.3]
[1646673620492,0.05,38758.0,38756.0,0.42686183]
[1646673620693,0.05,38758.0,38756.0,0.55495571]
[1646673620894,0.05,38758.0,38757.0,0.400336]
[1646673621894,0.05,38758.0,38757.0,0.700336]
[1646673622097,0.05,38758.0,38757.0,0.400336]
[1646673623294,0.05,38758.0,38756.0,0.010335]
[1646673623549,0.05,38758.0,38755.0,0.1]
[1646673624148,0.05,38758.0,38756.0,0.19000867]
[1646673624447,0.05,38758.0,38754.0,0.1]
[1646673625246,0.05028547,38758.0,38754.0,0.1]
[1646673625446,0.05028547,38758.0,38754.0,0.67477965]
[1646673625652,0.05028547,38758.0,38755.0,0.464849]
[1646673625847,0.05028547,38758.0,38756.0,0.57632627]
[1646673626048,0.05,38758.0,38756.0,0.57632627]
[1646673626249,0.05,38758.0,38757.0,0.800336]
[1646673626449,0.05028547,38758.0,38757.0,0.400336]
[1646673626649,0.05028547,38758.0,38757.0,0.700336]
[1646673626850,0.05028547,38758.0,38757.0,0.400336]
[1646673627291,0.05,38758.0,38757.0,0.400336]
[1646673628791,0.045,38758.0,38757.0,0.400336]
[1646673628990,0.045,38758.0,38755.0,0.400336]
[1646673629191,0.045,38758.0,38755.0,0.1]
[1646673629392,0.045,38758.0,38756.0,0.400336]
[1646673630092,0.045,38758.0,38755.0,0.15]
[1646673630934,0.045,38758.0,38755.0,0.160335]
[1646673631135,0.04529665,38758.0,38756.0,0.400336]
[1646673631336,0.04529665,38758.0,38755.0,0.15]
[1646673631537,0.04529665,38758.0,38756.0,0.400336]
[1646673631735,0.04529665,38758.0,38757.0,0.400336]
[1646673632138,0.045,38758.0,38757.0,0.400336]
[1646673632535,0.045,38758.0,38757.0,0.300336]
[1646673634136,0.04435077,38758.0,38757.0,0.300336]
[1646673634536,0.04435077,38758.0,38757.0,0.350336]
[1646673634787,0.04435077,38758.0,38757.0,0.450336]
[1646673635686,0.03935077,38758.0,38757.0,0.450336]
[1646673636586,0.03935077,38758.0,38757.0,0.476106]
[1646673637591,0.03935077,38758.0,38757.0,0.823706]
[1646673637886,5.65167681,38769.0,38763.0,0.05580405]
[1646673638088,5.65167681,38769.0,38764.0,0.064499]
[1646673638288,5.70167681,38769.0,38761.0,0.128998]
[1646673638538,0.00114223,38765.0,38761.0,0.128998]
[1646673638741,0.00114223,38765.0,38762.0,0.010333]
[1646673638937,0.00114223,38765.0,38761.0,0.30121254]
[1646673639336,6.19868662,38769.0,38762.0,0.1]
[1646673639538,5.90534741,38769.0,38762.0,0.1]
[1646673640739,5.90534741,38769.0,38762.0,0.10016473]
[1646673641137,5.90534741,38769.0,38764.0,0.0645]
[1646673641938,5.90534741,38769.0,38762.0,0.1]
[1646673642188,0.00027696,38768.0,38762.0,0.10027701]
[1646673642391,0.102828,38767.0,38762.0,0.00027701]
[1646673642589,0.102828,38765.0,38762.0,7.607e-05]
[1646673642794,0.150428,38765.0,38762.0,7.607e-05]
[1646673642988,0.24924811,38764.0,38761.0,0.010334]
[1646673643190,0.37882608,38763.0,38761.0,0.010334]
[1646673643389,0.43129061,38763.0,38761.0,0.010334]
[1646673643589,0.37882608,38763.0,38761.0,0.010334]
[1646673644090,0.37882608,38763.0,38750.0,0.35345056]
[1646673644290,0.37882608,38763.0,38750.0,0.05345056]
[1646673644492,0.23545925,38758.0,38750.0,0.05345056]
[1646673644701,0.102828,38755.0,38747.0,0.77503733]
[1646673644891,0.05,38753.0,38747.0,0.75003733]
[1646673645949,0.05,38753.0,38751.0,0.16798308]
[1646673646641,0.102828,38752.0,38751.0,0.16798308]
[1646673646842,0.102828,38752.0,38747.0,0.80003733]
[1646673646843,0.102828,38752.0,38750.0,0.00029679]
[1646673647046,0.3,38751.0,38750.0,0.00029679]
[1646673647243,0.450428,38751.0,38750.0,0.00029679]
[1646673647848,0.85315977,38751.0,38750.0,0.00029679]
[1646673648044,0.167388,38750.0,38747.0,0.75003733]
[1646673648242,0.0476,38749.0,38747.0,0.75003733]
[1646673648443,0.102828,38748.0,38747.0,0.75003733]
[1646673648642,0.150428,38748.0,38747.0,0.75003733]
[1646673649243,0.450428,38748.0,38747.0,0.75003733]
[1646673649443,0.51498055,38748.0,38747.0,0.75003733]
[1646673649689,0.21498055,38748.0,38747.0,0.75003733]
[1646673649891,0.42912,38750.0,38747.0,0.75003733]
[1646673650091,0.0476,38749.0,38747.0,0.75003733]
[1646673650393,1.21602,38750.0,38747.0,0.75003733]
[1646673650394,0.3,38748.0,38747.0,0.75003733]
[1646673650590,0.3,38748.0,38747.0,0.75022171]
[1646673650591,0.06455255,38748.0,38747.0,0.75022171]
[1646673651190,0.11615255,38748.0,38747.0,0.75022171]
[1646673651590,0.11615255,38748.0,38747.0,0.75003733]
[1646673654152,0.0516,38748.0,38747.0,0.75003733]
[1646673658394,0.2065277,38748.0,38747.0,0.75003733]
[1646673659095,0.5065277,38748.0,38747.0,0.75003733]
[1646673659896,0.57108423,38748.0,38747.0,0.75003733]
[1646673661347,0.27108423,38748.0,38747.0,0.75003733]
[1646673662741,0.2065277,38748.0,38747.0,0.75003733]
[1646673663743,0.2065277,38748.0,38747.0,0.74946588]
[1646673664346,0.72108258,38748.0,38747.0,0.74946588]
[1646673664552,0.87108258,38748.0,38747.0,0.09769075]
[1646673664792,2.2869,38747.0,38746.0,0.00027734]
[1646673664996,0.81267,38742.0,38727.0,0.20974074]
[1646673665191,0.05,38737.0,38728.0,0.16950089]
[1646673665391,0.0516,38736.0,38731.0,0.27877216]
[1646673666394,0.0516,38736.0,38734.0,0.16597749]
[1646673666596,0.0516,38736.0,38731.0,0.27877216]
[1646673668098,0.45,38742.0,38740.0,0.07127977]
[1646673668298,0.0516,38741.0,38740.0,0.07127977]
[1646673670843,0.1016,38741.0,38740.0,0.07127977]
[1646673671043,0.0516,38741.0,38740.0,0.07127977]
[1646673673288,0.0516,38741.0,38740.0,0.07063663]
[1646673674992,1.2885,38741.0,38740.0,0.07063663]
[1646673675190,1.4885,38741.0,38740.0,0.07063663]
[1646673675791,0.2516,38741.0,38740.0,0.07063663]
[1646673676440,0.1516,38741.0,38740.0,0.07063663]
[1646673677441,0.216166,38741.0,38740.0,0.07063663]
[1646673678442,0.366166,38741.0,38740.0,0.07063663]
[1646673678846,0.766166,38741.0,38740.0,0.07063663]
[1646673679894,0.766166,38741.0,38740.0,0.06563663]
[1646673683099,0.766166,38741.0,38740.0,0.06712442]
[1646673685553,1.5,38740.0,38739.0,6.37e-06]
[1646673685754,2.653078,38740.0,38739.0,6.37e-06]
[1646673685954,2.665978,38740.0,38739.0,6.37e-06]
[1646673686153,2.765878,38740.0,38739.0,6.37e-06]
[1646673686552,0.02577,38739.0,38722.0,0.003]
[1646673686857,0.02577,38739.0,38727.0,0.1979925]
[1646673686858,0.19902501,38730.0,38727.0,0.1979925]
[1646673687054,0.0516,38729.0,38724.0,0.07146699]
[1646673687693,0.0516,38729.0,38724.0,0.367505]
[1646673687893,0.05,38731.0,38724.0,0.39323981]
[1646673688096,0.05,38731.0,38726.0,0.23551074]
[1646673688294,0.05,38731.0,38728.0,0.02577]
[1646673688494,0.05,38731.0,38729.0,0.21921939]
[1646673688693,0.05,38731.0,38730.0,0.3]
[1646673690394,0.05,38731.0,38730.0,0.32577]
[1646673691241,0.05,38731.0,38730.0,0.3]
[1646673692437,0.05,38731.0,38730.0,0.50974074]
[1646673693137,0.05,38731.0,38730.0,0.53605726]
[1646673693337,0.05,38731.0,38730.0,0.51028726]
[1646673693539,0.05,38731.0,38730.0,0.51021684]
[1646673694038,0.05,38740.0,38734.0,0.20294753]
[1646673694238,0.05,38741.0,38734.0,0.20294753]
[1646673694442,0.05,38739.0,38734.0,0.20294753]
[1646673695091,0.05,38739.0,38737.0,0.21754273]
[1646673695293,0.05,38739.0,38738.0,0.3]
[1646673695497,0.05,38751.0,38738.0,0.3]
[1646673695694,0.05,38747.0,38744.0,0.15985601]
[1646673696092,0.21031308,38747.0,38746.0,0.06939817]
[1646673696493,0.05,38747.0,38746.0,0.06939817]
[1646673696692,0.05,38747.0,38746.0,0.36939817]
[1646673696893,0.05,38747.0,38746.0,0.06939817]
[1646673697094,0.05,38747.0,38744.0,0.25016201]
[1646673697292,0.05,38747.0,38744.0,0.22439201]
[1646673697693,0.05,38747.0,38744.0,0.52439201]
[1646673697895,0.05,38747.0,38744.0,0.22439201]
[1646673698094,0.03776466,38754.0,38750.0,0.25219201]
[1646673698294,0.03776466,38754.0,38750.0,0.252122]
[1646673699038,0.29415269,38753.0,38750.0,0.252122]
[1646673699239,0.34415269,38753.0,38750.0,0.252122]
[1646673699542,0.05,38753.0,38750.0,0.252122]
[1646673699840,0.10230966,38754.0,38750.0,0.252122]
[1646673700539,0.36149049,38754.0,38750.0,0.252122]
[1646673702993,0.10230966,38754.0,38752.0,0.00049128]
[1646673703200,0.15230966,38754.0,38752.0,0.00049128]
[1646673703399,0.10230966,38754.0,38752.0,0.00049128]
[1646673703604,0.264331,38759.0,38752.0,0.00049128]
[1646673703801,0.157,38766.0,38752.0,0.00049128]
[1646673703998,0.4711,38768.0,38752.0,0.00049128]
[1646673703999,0.00027606,38761.0,38756.0,0.06481102]
[1646673704398,0.00027606,38761.0,38757.0,0.43444117]
[1646673704797,0.0011042,38762.0,38757.0,0.43444117]
[1646673705002,0.1998,38768.0,38764.0,0.20396096]
[1646673705303,0.00110414,38767.0,38764.0,0.24807387]
[1646673705697,0.00110414,38767.0,38764.0,0.04411291]
[1646673705941,0.00110414,38767.0,38764.0,0.10099877]
[1646673706140,5.88511819,38769.0,38764.0,0.04411291]
[1646673706339,0.00027605,38767.0,38764.0,0.04411291]
[1646673707338,0.05,38768.0,38764.0,0.04411291]
[1646673707541,0.00027605,38767.0,38764.0,0.04411291]
[1646673707944,0.00027605,38767.0,38765.0,0.07015488]
[1646673708542,0.05,38768.0,38765.0,0.07015488]
[1646673708841,0.05027605,38768.0,38765.0,0.07015488]
[1646673709242,0.05027605,38768.0,38764.0,0.04411291]
[1646673709446,1.5,38767.0,38754.0,0.19354]
[1646673709695,1.5,38767.0,38745.0,0.09341]
[1646673709696,0.7869,38760.0,38747.0,0.3411]
[1646673709895,0.17577,38761.0,38745.0,0.09341]
[1646673709896,0.86267,38756.0,38745.0,0.09341]
[1646673710093,0.0475,38755.0,38745.0,0.09341]
[1646673710293,0.31998324,38755.0,38745.0,0.09341]
[1646673710497,0.20303691,38752.0,38745.0,0.09341]
[1646673710797,0.0475,38751.0,38745.0,0.09341]
[1646673711191,0.112055,38751.0,38745.0,0.09341]
[1646673711396,0.0475,38751.0,38745.0,0.09341]
[1646673711592,0.0475,38751.0,38745.0,0.22248]
[1646673711791,0.0475,38751.0,38750.0,0.31798395]
[1646673712995,0.0525,38751.0,38750.0,0.31798395]
[1646673713851,0.0525,38751.0,38750.0,0.252122]
[1646673714251,0.0475,38751.0,38750.0,0.252122]
[1646673715052,0.0515,38751.0,38750.0,0.252122]
[1646673716251,0.0475,38751.0,38750.0,0.252122]
[1646673717052,0.0515,38751.0,38750.0,0.252122]
[1646673717497,0.0515,38751.0,38750.0,0.25463827]
[1646673718095,0.0515,38751.0,38750.0,0.25433128]
[1646673718300,0.0475,38751.0,38750.0,0.25433128]
[1646673718896,0.0475,38751.0,38750.0,0.25419489]
[1646673719097,0.0515,38751.0,38750.0,0.25419489]
[1646673719899,0.0515,38751.0,38750.0,0.26453389]
[1646673720101,0.0515,38751.0,38750.0,0.25419489]
[1646673720301,0.0475,38751.0,38750.0,0.25419489]
[1646673720958,0.114548,38754.0,38750.0,0.25419489]
[1646673720959,0.05,38754.0,38750.0,0.25419489]
[1646673721152,0.1,38755.0,38750.0,0.25419489]
[1646673721353,0.05,38755.0,38750.0,0.25419489]
[1646673721752,0.05,38755.0,38752.0,0.20834453]
[1646673722152,0.1,38756.0,38752.0,0.20834453]
[1646673722453,0.05,38755.0,38752.0,0.20834453]
[1646673722853,0.05,38756.0,38753.0,0.06343686]
[1646673723156,0.05,38756.0,38753.0,0.19248486]
[1646673725195,0.052,38756.0,38753.0,0.19248486]
[1646673725796,0.052,38756.0,38753.0,0.129048]
[1646673726397,0.05,38756.0,38753.0,0.129048]
[1646673726997,0.00026044,38761.0,38753.0,0.29528488]
[1646673727200,0.05,38758.0,38757.0,0.064529]
[1646673728001,0.05,38762.0,38759.0,0.09585922]
[1646673728200,0.00026046,38761.0,38760.0,0.33198814]
[1646673729043,0.00426046,38761.0,38760.0,0.129037]
[1646673729246,0.004,38761.0,38760.0,0.129037]
[1646673729646,0.004,38761.0,38760.0,0.12889702]
[1646673730248,0.004,38761.0,38760.0,0.12882681]
[1646673730547,0.05026046,38762.0,38760.0,0.12882681]
[1646673730848,0.29928578,38762.0,38760.0,0.12882681]
[1646673731251,0.34928578,38762.0,38759.0,0.09585922]
[1646673731455,0.34902532,38762.0,38760.0,0.010336]
[1646673732690,0.34902532,38762.0,38760.0,0.0127975]
[1646673733086,0.35302532,38762.0,38760.0,0.0127975]
[1646673733387,0.35302532,38762.0,38760.0,0.0024615]
[1646673733686,0.104,38762.0,38760.0,0.00233411]
[1646673734093,0.054,38762.0,38760.0,0.30233411]
[1646673734289,0.054,38762.0,38760.0,0.00233411]
[1646673734290,0.05,38762.0,38760.0,0.00233411]
[1646673734490,0.05,38762.0,38760.0,0.24127286]
[1646673735588,0.05,38762.0,38760.0,0.01266811]
[1646673735788,0.05,38762.0,38760.0,0.00233411]
[1646673736442,0.05,38762.0,38760.0,0.06463058]
[1646673737243,0.055,38762.0,38760.0,0.06463058]
[1646673737646,0.055,38762.0,38760.0,0.27698163]
[1646673738447,0.05,38762.0,38760.0,0.27698163]